Cogmind - Beta 17 @@@ ROGUE MODE // 2026.07.03 @ 23:00:00 Player: Ammie Result: Destroyed by G-34 Mercenary with Small Laser Performance ------------- Evolutions (1) 500 Regions Visited (2) 400 Robots Destroyed (29) 145 Value Destroyed (570) 570 Prototype IDs (0) 0 Alien Tech Used (0) 0 Bonus (0) 0 TOTAL SCORE: 1615 Bonus ------- None Cogmind --------- Core Integrity 0/400 Matter 300/300 Energy 100/100 System Corruption 0% Temperature Cool (6) Movement Core (350) Ox6 Location -9/Materials Parts ------- > --- POWER (1) -------- (None) > --- PROPULSION (3) --- (None) > --- UTILITY (3) ------ Large Storage Unit Signal Interpreter > --- WEAPON (2) ------- (None) > --- INVENTORY (15) --- Small Storage Unit Medium Storage Unit Structural Scanner Hacking Suite Peak State ------------ > --- POWER ------------ Ion Engine > --- PROPULSION ------- Light Treads Light Treads Light Treads > --- UTILITY ---------- Medium Storage Unit Sensor Array > --- WEAPON ----------- EM Pulse Gun EM Pulse Gun > --- INVENTORY -------- Small Storage Unit Structural Scanner Signal Interpreter Hacking Suite EM Pulse Gun Medium Laser Datajack Mining Laser [Rating: 9] Favorites ----------- Power Ion Engine Engine Ion Engine Propulsion Light Treads Treads Light Treads Utility Sensor Array Device Sensor Array Storage Medium Storage Unit Processor Signal Interpreter Weapon EM Pulse Gun Energy Gun EM Pulse Gun Ballistic Gun Light Assault Rifle Special Weapon Mining Laser Special Melee Weapon Datajack Build | -11 -10 -9 ------- Run | Yrd Mat Mat Slots Evolved 2 | . . 2 Power . | . . . Propulsion 1 | . . 1 Utility 1 | . . 1 Weapon . | . . . Parts Attached 22 | 7 12 3 Power 5 | 2 3 . Engine 5 | 2 3 . Core . | . . . Reactor . | . . . Propulsion 3 | 2 1 . Treads 3 | 2 1 . Leg . | . . . Wheel . | . . . Hover . | . . . Flight . | . . . Utility 5 | 1 2 2 Device 1 | . 1 . Storage 3 | 1 1 1 Processor 1 | . . 1 Hackware . | . . . Protection . | . . . Artifact . | . . . Weapon 9 | 2 6 1 Energy Gun 4 | 1 3 . Energy Cannon . | . . . Ballistic Gun 3 | 1 2 . Ballistic Cannon . | . . . Launcher . | . . . Special Weapon 1 | . 1 . Impact Weapon . | . . . Slashing Weapon . | . . . Piercing Weapon . | . . . Special Melee Weapon 1 | . . 1 Unidentified Prototypes . | . . . Parts Lost 11 | . 1 10 Power 2 | . 1 1 Propulsion 2 | . . 2 Utility 1 | . . 1 Weapon 6 | . . 6 Highest Loss Streak 6 | . 1 6 To Critical Strikes . | . . . Average Backups 6 | . 6 5 Power 1 | . 1 . Propulsion . | . . . Utility 1 | . 1 3 Weapon 1 | . 1 1 Tool/Special . | . . . Unused Backups 2 | . . 2 Power . | . . . Propulsion . | . . . Utility 2 | . . 2 Weapon . | . . . Tool/Special . | . . . Average Slot Usage (%) 92 | . 96 76 Engine 12 | . 13 7 Treads 26 | . 27 22 Device 11 | . 11 9 Storage 13 | . 14 11 Processor 2 | . . 10 Energy Gun 17 | . 17 14 Ballistic Gun 4 | . 5 . Special Weapon 4 | . 4 . Peak Build Rating 9 | 6 8 9 Average Rating 7 | 4 7 6 On Entrance 4 | . 6 8 Avg Prop Armor Cover (%) . | . . . Naked Turns . | . . . Heaviest Build 21 | 13 20 21 Greatest Support 60 | 40 40 60 Greatest Overweight (x) 6 | 1 . 6 Average Overweight (x) . | . . 1 Largest Inventory Capacity 15 | 8 10 15 Average Capacity 9 | 6 9 10 Most Carried 10 | 2 10 8 Average Carried 6 | . 6 5 Final Capacity 15 | 8 10 15 Final Carried 9 | 2 9 4 Class Distribution -------------------- 100% | Mutant Dominant Class ---------------- Mutant | -10/Materials Mutant | -9/Materials Resources | -11 -10 -9 ----------- Run | Yrd Mat Mat Matter Collected 485 | 216 210 59 Remotely . | . . . Salvage Created 765 | . 498 267 Parts 54 | . 34 20 Haulers Intercepted 3 | . 2 1 Recyclers Shooed . | . . . Parts Field Recycled . | . . . Retrieved Matter . | . . . Parts Self-Destructed . | . . . Prevented . | . . . Parts Restored . | . . . Kills | -11 -10 -9 ------- Run | Yrd Mat Mat Combat Hostiles Destroyed 18 | . 14 4 Guns 14 | . 11 3 Cannons 1 | . . 1 AOE 3 | . 3 . Classes Destroyed 10 | . 7 3 Worker 1 | . 1 . Builder 1 | . . 1 Tunneler 1 | . 1 . Hauler 3 | . 2 1 Operator 2 | . 2 . Watcher 3 | . 2 1 Swarmer 9 | . 9 . Grunt 6 | . 5 1 Duelist 1 | . . 1 Sentry 2 | . . 2 Best Kill Streak 5 | . 5 3 Combat Bots Only 5 | . 5 1 Max Kills in Single Turn 3 | . 3 1 Gunslinging . | . . . Exploded 3 | . 3 . Melee . | . . . Uniques/NPCs Destroyed . | . . . Combat | -11 -10 -9 -------- Run | Yrd Mat Mat Hostile Shots Fired 193 | . 80 113 Missed 51 | . 21 30 Hits 142 | . 59 83 Melee 6 | . . 6 Projectile 136 | . 59 77 Critical Strikes 6 | . . 6 Damage Taken 1606 | . 577 1029 Core 511 | . 101 410 Absorbed by Shields . | . . . Core Remaining (%) 79 | 100 59 . Volleys Fired 116 | . 81 35 Largest 2 | . 2 2 Hottest 100 | . 100 100 Shots Fired 188 | . 127 61 Gun 178 | . 119 59 Cannon . | . . . Launcher . | . . . Special 10 | . 8 2 Kinetic 41 | . 41 . Thermal 48 | . 36 12 Explosive . | . . . Electromagnetic 99 | . 50 49 Robot Hit Streak 14 | . 6 14 Robot Miss Streak 6 | . 6 3 Penetration Max . | . . . Secondary Targets 1 | . 1 . Max Gunslinging Chain 1 | . 1 . Shots Hit Robots 87 | . 58 29 Core Hits 41 | . 29 12 Critical Kills 1 | . 1 . Critical Parts Destroyed . | . . . Critical Strikes 3 | . 1 2 Burn 1 | . . 1 Destroy 1 | . 1 . Corrupt 1 | . . 1 Melee Attacks . | . . . Impact . | . . . Slashing . | . . . Piercing . | . . . Sneak Attacks . | . . . Combat Hostiles . | . . . Follow-up Attacks . | . . . Damage Inflicted 1752 | . 1205 547 Guns 1028 | . 662 366 Cannons . | . . . Explosions 693 | . 543 150 Melee . | . . . Ramming 7 | . . 7 Kinetic 166 | . 166 . Thermal 970 | . 695 275 Explosive . | . . . Electromagnetic 609 | . 344 265 Impact . | . . . Slashing . | . . . Piercing . | . . . Highest Corruption . | . . . Average Corruption . | . . . Corruption Purged . | . . . Corruption Blocked . | . . . Overload Shots . | . . . Overflow Damage 47 | . 47 . Projectiles . | . . . Explosions 47 | . 47 . Melee . | . . . Knockbacks . | . . . Impact . | . . . Kinetic . | . . . Secondary . | . . . Self-Inflicted Damage 29 | . 26 3 Shots 1 | . 1 . Rammed 4 | . . 4 Targets Rammed 4 | . . 4 Kicked . | . . . Crushed . | . . . Highest Temperature 371 | . 371 114 Average Temperature 64 | . 77 40 Received Heat Transfer 447 | . 174 273 Effects 1 | . 1 . Shutdowns 1 | . 1 . Siege Activations . | . . . Martial Activations . | . . . Shielding Activations . | . . . Robots Disrupted . | . . . Combat Hostiles . | . . . Robots Corrupted . | . . . Combat Hostiles . | . . . Parts Fried 1 | . 1 . Impact Corruptions . | . . . Robots Melted . | . . . Combat Hostiles . | . . . Parts Melted 2 | . 1 1 Heat Transferred 1414 | . 794 620 Parts Sabotaged . | . . . Parts Stolen . | . . . Parts Stripped . | . . . Power Chain Reactions 4 | . 2 2 Alert | -11 -10 -9 ------- Run | Yrd Mat Mat Maximum Alert Level . | . . . Low Security (%) 100 | 100 100 100 Level 1 . | . . . Level 2 . | . . . Level 3 . | . . . Level 4 . | . . . Level 5 . | . . . High Security . | . . . Max Security . | . . . Peak Influence 156 | . 156 40 Initial 10 | . . 10 Average 51 | . 63 10 Influence Increases 658 | . 502 156 Destroy 0b10 Robot/C 360 | . 280 80 Destroy 0b10 Robot/NC 55 | . 40 15 Destroy Leader 82 | . 48 34 Successful Hack 5 | . 5 . Disable Machine 60 | . 60 . Destroy Structure 51 | . 39 12 Partial Spotted 15 | . 15 . Lose Combat Pursuer 30 | . 15 15 Influence Decreases 658 | . 477 181 Entered New Map 15 | . . 15 Time Decay 582 | . 467 115 Lost Part 61 | . 10 51 Squads Dispatched 1 | . 1 . Investigation 1 | . 1 . Extermination . | . . . Reinforcement . | . . . Assault . | . . . Garrison . | . . . Intercept . | . . . Searches Triggered . | . . . Construction Impeded . | . . . Haulers Reinforced . | . . . Active Scanning Responses . | . . . Cargo Convoy Interrupts . | . . . Stealth | -11 -10 -9 --------- Run | Yrd Mat Mat Distress Signals 1 | . . 1 Communications Jammed . | . . . Distress Signals . | . . . Times Spotted 38 | . 23 15 Peak Tracking Total 6 | . 4 6 Tactical Retreats 2 | . 1 1 Traps | -11 -10 -9 ------- Run | Yrd Mat Mat Traps Triggered 3 | . 3 . Indirectly . | . . . Trap Hack Attempts . | . . . Triggered . | . . . Disarmed . | . . . Reprogrammed . | . . . Reused . | . . . Traps Extracted . | . . . Installed . | . . . Triggered . | . . . Machines | -11 -10 -9 ---------- Run | Yrd Mat Mat Machines Disabled 4 | . 4 . Max in Single Turn 2 | . 2 . Machines Repaired . | . . . Machines Dismantled . | . . . Machines Sabotaged . | . . . Overloaded Fab Kills . | . . . Hacking | -11 -10 -9 --------- Run | Yrd Mat Mat Machines Accessed 5 | . 5 . Terminals 5 | . 5 . Fabricators . | . . . Repair Stations . | . . . Recycling Units . | . . . Scanalyzers . | . . . Garrison Access . | . . . Total Hacks 10 | . 10 . Successful 4 | . 4 . Failed 6 | . 6 . Catastrophic 2 | . 2 . Database Lockouts . | . . . Manual 10 | . 10 . Terminals 10 | . 10 . Fabricators . | . . . Repair Stations . | . . . Recycling Units . | . . . Scanalyzers . | . . . Garrison Access . | . . . Terminal Hacks 1 | . 1 . Zone Layout 1 | . 1 . Fabricator Hacks . | . . . Repair Station Hacks . | . . . Recycling Unit Hacks . | . . . Scanalyzer . | . . . Garrison Access Hacks . | . . . Unauthorized Hacks 3 | . 3 . Terminals 3 | . 3 . Assimilate 1 | . 1 . Botnet 1 | . 1 . Operators 1 | . 1 . Fabricators . | . . . Repair Stations . | . . . Recycling Units . | . . . Scanalyzers . | . . . Garrison Access . | . . . Data Cores Recovered 2 | . 2 . Used . | . . . Hacking Detections 4 | . 4 . Full Trace Events 1 | . 1 . Feedback Events . | . . . Feedback Blocked . | . . . Robot Schematics Acquired . | . . . Robots Built . | . . . Authchips . | . . . Time . | . . . Total Robot Build Rating . | . . . Part Schematics Acquired . | . . . Parts Built . | . . . Authchips . | . . . Time . | . . . Total Part Build Rating . | . . . Part Studies Acquired . | . . . Parts Repaired . | . . . Time . | . . . Parts Recycled . | . . . Recycled Matter . | . . . Retrieved Matter . | . . . Retrieved Components . | . . . Parts Scanalyzed . | . . . Part Schematics Acquired . | . . . Parts Damaged . | . . . Bothacking | -11 -10 -9 ------------ Run | Yrd Mat Mat Used RIF Installer . | . . . Robots Hacked . | . . . Non-combat . | . . . Combat . | . . . Robot Hacks Applied . | . . . Relay Couplers Released . | . . . Fabnet Peak Effective % . | . . . Robots Rewired . | . . . Allies Hacked . | . . . Hacks Repelled . | . . . Allies | -11 -10 -9 -------- Run | Yrd Mat Mat Total Allies . | . . . Largest Group . | . . . Highest-Rated Group . | . . . Highest-Rated Ally . | . . . Total Orders . | . . . Ally Attacks . | . . . Total Damage . | . . . Kills . | . . . Allies Corrupted . | . . . Allies Melted . | . . . Intel | -11 -10 -9 ------- Run | Yrd Mat Mat Active Infowar (turns) 1611 | . 1306 305 Sensors 1611 | . 1306 305 Robot Analysis Total . | . . . Derelict Logs Recovered . | . . . Drone Launches . | . . . Drone Recoveries . | . . . Exploration | -11 -10 -9 ------------- Run | Yrd Mat Mat Turns Passed 2055 | 64 1595 396 Spaces Moved 962 | 37 806 119 Core 45 | 7 . 38 Treads 917 | 30 806 81 Legs . | . . . Wheels . | . . . Hover . | . . . Flight . | . . . Fastest Speed 50 | 50 160 160 Average Speed 163 | 145 160 191 Slowest Speed 350 | 160 160 350 Overloaded Moves . | . . . Propulsion Burnouts . | . . . Robots Hopped . | . . . Potential Cave-ins . | . . . Cave-ins Triggered . | . . . Exploration Rate (%) 37 | 3 94 14 Regions Visited 2 Branch Regions . Pre-discovered Areas . | . . . Known Exits Taken . | . . . Unknown Exits Taken 2 | 1 1 . Scrap Searched . | . . . Spaces Dug 7 | . 7 . Terrain Destroyed 57 | . 47 10 Melee . | . . . Projectile 9 | . 8 1 AOE 48 | . 39 9 Terrain Rammed . | . . . Walls Destroyed . | . . . Machines Disabled . | . . . Actions | -11 -10 -9 --------- Run | Yrd Mat Mat Total 1231 | 44 973 214 Wait 107 | . 59 48 Move 960 | 36 805 119 Hop . | . . . Pick Up 9 | 1 8 . Fast Attach 11 | 6 4 1 Attach 8 | . 2 6 Detach . | . . . Swap 12 | 1 10 1 Drop 4 | . 4 . Fire 116 | . 81 35 Melee . | . . . Ram 4 | . . 4 Kick . | . . . Crush . | . . . Escape Stasis . | . . . Rewire . | . . . Trap . | . . . Miscellaneous . | . . . Route ------- -11/Scrapyard -10/Materials (discovered 5 exits: [*Mat x3] / [*Min] / [*Sub]) -9/Materials History --------- Turn | Location | Event 7 | -11/Scrapyard | Discovered new exit (range 15) 65 | -11/Scrapyard | Entered Materials 131 | -10/Materials | Discovered new exit (range 15) 313 | -10/Materials | Build established: Mutant 343 | -10/Materials | Discovered new exit (range 8) 575 | -10/Materials | Discovered new exit (range 9) 674 | -10/Materials | Discovered new exit (range 3) 1637 | -10/Materials | Discovered new exit (range 9) 1660 | -10/Materials | Entered another Materials area 1660 | -9/Materials | Evolved 2 slots: Propulsion x1, Utility x1 1994 | -9/Materials | Lost 6 parts (1p2n3w) 2029 | -9/Materials | Core integrity fell below 50% 2048 | -9/Materials | Core integrity fell below 20% 2056 | -9/Materials | Destroyed by G-34 Mercenary with Small Laser Last Messages --------------- 01940_ K-01 Serf collects debris. 01949_ U-05 Engineer builds a Wall. 01955_ Mining Laser destroyed. 01960_ R-06 Scavenger collects Lgt. Treads. 01961_ Acquired EM Pulse Gun. 01963_ EM Pulse Gun destroyed. 01964_ R-06 Scavenger collects Power Shielding. 01965_ Slammed into U-05 Engineer. 01965_ Destabilizing: System interference. 01965_ Sensor Array temporarily disabled. 01965_ Signal Interpreter temporarily disabled. 01968_ R-06 Scavenger collects Corrupted Lgt. Treads. 01972_ R-06 Scavenger collects Lgt. Armor Plating. 01975_ Slammed into U-05 Engineer. 02017_ Sensor Array destroyed. 02028_ S-10 Pest destroyed. 02030_ W-16 Scout sends out distress signal. 02038_ Datajack destroyed. 02039_ Slammed into S-10 Pest. 02046_ Acquired 3 matter. Map ----- +----------------------------------------------------+ | ????????????????? #??????????????????????????? | | #######?????????? #??????????????????????????? | | #?????????? #??????????????????????????? | | #?????????? % #??????????????????????????? | | #??????????# ##??????????????????????????? | | #??????????# % # ??????????????????????????? | | """ #??????????# #???????????????????????????? | | """ #??????????# +???????????????????????????? | | """ #??????????# #???????????????????????????? | | #??????????# #???????????????????????????? | | ###+############## #???????????????????????????? | | #???????????????????????????? | | #???????????????????????????? | | ! #???????#########+######????? | | #### ############ ########## ???? | | ???# #??????????# ## ## ???? | | ???# #??????????#=##""" ! + ???? | | ???# #???????#??#!##""" %## u###+##??????????? | | ???# #??????"#??# ##""" [## #???????????????? | | ???# #???? #??# ## ## #???????????????? | | ??## ##?? #??# ##! ## ##??????????????? | | ??# ###+#######%#####s### #??????????????? | | ??# *% *s =[ #??????????????? | | ??# " ! % u%=g !%! #??????????????? | | ??# = u!| [ #??????????????? | | ??# ###+#############@### #??????????????? | | #####+##### ?????????? ?# ##??????????????? | | # # ????????# #? #???????????????? | | # # ???????# !!! #? #???????????????? | | # """ # ???????# !!! #? #???????????????? | | # """ "" # #??????# !! #? #???????????????? | | # """ """# #??????# #? ????????????????? | | # """ R"# #??????########????????????????????? | | # """ """#####??????????????????????????????????? | | ? #??????????????????????????????????????? | | ?#########???????????????????????????????????????? | | ?????????????????????????????????????????????????? | | ?????????????????????????????????????????????????? | | ?????????????????????????????????????????????????? | | ?????????????????????????????????????????????????? | | ?????????????????????????????????????????????????? | | ?????????????????????????????????????????????????? | | ?????????????????????????????????????????????????? | | ?????????????????????????????????????????????????? | | ?????????????????????????????????????????????????? | | ?????????????????????????????????????????????????? | | ?????????????????????????????????????????????????? | | ?????????????????????????????????????????????????? | | ?????????????????????????????????????????????????? | | ?????????????????????????????????????????????????? | +----------------------------------------------------+ Best States ------------- Heat Dissipation 28 Energy Generation 10 Energy Capacity 250 Matter Stores 300 Matter Capacity 300 Sight Range 16 Robot Scan Range 14 Terrain Scan Density 10 Evasion (%) 40 Recoil Reduction 3 Item Schematics ----------------- None Robot Schematics ------------------ None Fabricated ------------ Nothing Repaired ---------- Nothing Studied --------- None Alien Tech Used ----------------- None Achievements -------------- None Challenges ------------ None Game ------ Seed TachyonCloakingMapper Manual? 0 Play Time 00:13:06 Cumulative 80.7 hours Start 2026.07.03 @ 22:41:06 End 2026.07.03 @ 23:00:00 Sessions 1 Manual Loads 0 Difficulty Rogue Special Mode None Game No. 136 Rogue 136 Adventurer 0 Explorer 0 Win Type - Total 0 Types 0/0/0/0/0/0/0/0/0/0 Lore% 21 Gallery% 31 Achievement% 27 Wizard Run 0 Options --------- Layout 0 ASCII 0 Keyboard 0 Movement Mouse Keybinds 0 Fullscreen 1 Font 24/Smallcaps Map View 38x25 Zoom Use 96% Tactical HUD 1 Map Filters NONE Filters NONE Steam 1 RUN: 8a2ded2d-eee4-4886-a12e-94045ec44b34